fUST/lending_fUST_20260530
["ID","MTS","AMOUNT","RATE_DAILY","PERIOD"]
[423391481,1780078246000,-500.60145046,0.00014597,2]
[423391482,1780078246000,-500.0,0.00014597,2]
[423391478,1780078246000,-503.41126342,0.00014597,2]
[423391480,1780078246000,-500.33451948,0.00014597,2]
[423391501,1780078246000,-500.0,0.00014768,2]
[423391484,1780078246000,-500.0,0.00014597,2]
[423391485,1780078246000,-151.48,0.00014597,2]
[423391490,1780078246000,-582.10885884,0.00014597,2]
[423391500,1780078246000,-587.15923207,0.00014717,2]
[423391489,1780078246000,-501.05765059,0.00014597,2]
[423391491,1780078246000,-500.19686198,0.00014597,2]
[423391487,1780078246000,-500.601898,0.00014597,2]
[423391494,1780078246000,-167.30098897,0.00014597,2]
[423391486,1780078246000,-500.60141661,0.00014597,2]
[423391477,1780078246000,-500.0,0.00014597,2]
[423391471,1780078246000,-501.90586945,0.00014597,2]
[423391472,1780078246000,-476.0575199,0.00014597,2]
[423391492,1780078246000,-503.86452635,0.00014597,2]
[423391457,1780078246000,-122.98167774,0.00014597,2]
[423391460,1780078246000,-500.0,0.00014597,2]
[423391459,1780078246000,-504.69114315,0.00014597,2]
[423391461,1780078246000,-500.0,0.00014597,2]
[423391458,1780078246000,-500.0,0.00014597,2]
[423391463,1780078246000,-454.26286373,0.00014597,2]
[423391473,1780078246000,-500.0,0.00014597,2]
[423391474,1780078246000,-502.07127785,0.00014597,2]
[423391462,1780078246000,-22.3321791,0.00014597,2]
[423391475,1780078246000,-500.19240763,0.00014597,2]
[423391468,1780078246000,-500.87795346,0.00014597,2]
[423391469,1780078246000,-500.0,0.00014597,2]
[423391465,1780078246000,-500.0,0.00014597,2]
[423391464,1780078246000,-26.31280535,0.00014597,2]
[423391466,1780078246000,-500.0,0.00014597,2]
[423391467,1780078246000,-501.643361,0.00014597,2]
[423391470,1780078246000,-500.0,0.00014597,2]
[423391493,1780078246000,-500.0,0.00014597,2]
[423391527,1780078246000,-500.0,0.00014798,2]
[423391496,1780078246000,-500.0,0.00014692,2]
[423391518,1780078246000,-500.0,0.00014798,2]
[423391522,1780078246000,-500.0,0.00014798,2]
[423391524,1780078246000,-500.0,0.00014798,2]
[423391520,1780078246000,-500.0,0.00014798,2]
[423391521,1780078246000,-500.0,0.00014798,2]
[423391523,1780078246000,-500.0,0.00014798,2]
[423391528,1780078246000,-500.0,0.00014798,2]
[423391495,1780078246000,-499.475741,0.00014658,2]
[423391537,1780078246000,-523.89647894,0.00014798,2]
[423391530,1780078246000,-500.0,0.00014798,2]
[423391529,1780078246000,-500.28803302,0.00014798,2]
[423391531,1780078246000,-500.0,0.00014798,2]
[423391535,1780078246000,-500.39836249,0.00014798,2]
[423391534,1780078246000,-500.0,0.00014798,2]
[423391533,1780078246000,-500.0,0.00014798,2]
[423391536,1780078246000,-500.0,0.00014798,2]
[423391538,1780078246000,-500.0,0.00014798,2]
[423391517,1780078246000,-500.0,0.00014798,2]
[423391516,1780078246000,-500.0,0.00014798,2]
[423391532,1780078246000,-500.0,0.00014798,2]
[423391519,1780078246000,-500.0,0.00014798,2]
[423391514,1780078246000,-500.0,0.00014769,2]
[423391499,1780078246000,-630.84417099,0.00014709,2]
[423391498,1780078246000,-160.3908061,0.00014709,2]
[423391513,1780078246000,-500.0,0.00014769,2]
[423391503,1780078246000,-500.0,0.00014768,2]
[423391502,1780078246000,-500.0,0.00014768,2]
[423391505,1780078246000,-500.0,0.00014768,2]
[423391510,1780078246000,-545.49,0.00014769,2]
[423391508,1780078246000,-187.31,0.00014769,2]
[423391497,1780078246000,-517.65,0.00014696,2]
[423391526,1780078246000,-515.85942396,0.00014798,2]
[423391506,1780078246000,-500.0,0.00014769,2]
[423391507,1780078246000,-500.0,0.00014769,2]
[423391509,1780078246000,-500.0,0.00014769,2]
[423391511,1780078246000,-500.0,0.00014769,2]
[423391512,1780078246000,-500.0,0.00014769,2]
[423391525,1780078246000,-500.0,0.00014798,2]
[423391515,1780078246000,-500.0,0.00014798,2]
[423391504,1780078246000,-500.0,0.00014768,2]
[423391546,1780078247000,-225.07600566,0.00014798,2]
[423391553,1780078247000,-500.0,0.00014866,2]
[423391552,1780078247000,-500.0,0.00014866,2]
[423391556,1780078247000,-500.0,0.00014868,2]
[423391560,1780078247000,-3521.67385776,0.00014868,2]
[423391558,1780078247000,-196.98,0.00014868,2]
[423391547,1780078247000,-500.0,0.00014798,2]
[423391557,1780078247000,-166.57,0.00014868,2]
[423391544,1780078247000,-500.0,0.00014798,2]
[423391549,1780078247000,-500.0,0.00014798,2]
[423391542,1780078247000,-500.0,0.00014798,2]
[423391543,1780078247000,-500.53095713,0.00014798,2]
[423391551,1780078247000,-332.4,0.00014866,2]
[423391550,1780078247000,-500.0,0.00014798,2]
[423391540,1780078247000,-500.0,0.00014798,2]
[423391548,1780078247000,-500.0,0.00014798,2]
[423391541,1780078247000,-500.59746625,0.00014798,2]
[423391539,1780078247000,-503.15060699,0.00014798,2]
[423391545,1780078247000,-500.0,0.00014798,2]
[423391559,1780078247000,-500.0,0.00014868,2]
[423391565,1780078247000,-194.99,0.00014869,2]
[423391555,1780078247000,-500.0,0.00014868,2]
[423391573,1780078247000,-500.0,0.00014869,2]
[423391575,1780078247000,-500.0,0.00014869,2]
[423391579,1780078247000,-8.45157426,0.00014871,2]
[423391577,1780078247000,-232.86495608,0.00014871,2]
[423391578,1780078247000,-594.44,0.00014871,2]
[423391574,1780078247000,-500.0,0.00014869,2]
[423391570,1780078247000,-500.0,0.00014869,2]
[423391569,1780078247000,-287.14462648,0.00014869,2]
[423391571,1780078247000,-500.0,0.00014869,2]
[423391563,1780078247000,-1793.79183894,0.00014868,2]
[423391567,1780078247000,-500.0,0.00014869,2]
[423391576,1780078247000,-405.56,0.00014871,2]
[423391572,1780078247000,-1928.2122,0.00014869,2]
[423391566,1780078247000,-452.45,0.00014869,2]
[423391564,1780078247000,-500.0,0.00014868,2]
[423391562,1780078247000,-2504.1343033,0.00014868,2]
[423391561,1780078247000,-355.3,0.00014868,2]
[423391568,1780078247000,-500.0,0.00014869,2]
[423391554,1780078247000,-610.26,0.00014866,2]
[423391583,1780078365000,829.7489768,0.0002051,120]
[423391650,1780078702000,152.0,0.0002051,120]
[423391780,1780079431000,-2251.31959154,0.00011643,2]
[423391781,1780079431000,-698.15084257,0.00011643,2]
[423391798,1780079432000,-190.79161572,0.000142,2]
[423391795,1780079432000,-707.246481,0.00013809,2]
[423391794,1780079432000,-224.72600084,0.00013732,2]
[423391792,1780079432000,-1000.0,0.00013699,2]
[423391796,1780079432000,-180.731869,0.00014104,2]
[423391793,1780079432000,-176.14776962,0.00013699,2]
[423391799,1780079432000,-195.26180252,0.000142,2]
[423391790,1780079432000,-767.15540412,0.00013267,2]
[423391791,1780079432000,-169.08705004,0.00013571,2]
[423391797,1780079432000,-165.8309915,0.0001419,2]
[423391789,1780079432000,-152.0,0.00013026,7]
[423391787,1780079432000,-1415.0928924,0.0001278,2]
[423391785,1780079432000,-151.12,0.00012,2]
[423391786,1780079432000,-288.8677031,0.00012412,2]
[423391784,1780079432000,-1935.69849571,0.00011882,2]
[423391782,1780079432000,-2050.52956589,0.00011643,2]
[423391783,1780079432000,-190.44576342,0.00011732,2]
[423391788,1780079432000,-152.0,0.00013026,7]
[423391800,1780079432000,-198.04987447,0.000142,2]
[423391801,1780079432000,-199.53310355,0.000142,2]
[423391803,1780079432000,-500.0,0.0001422,2]
[423391802,1780079432000,-500.0,0.0001422,2]
[423391816,1780079432000,-500.0,0.0001429,2]
[423391820,1780079432000,-500.0,0.0001429,2]
[423391819,1780079432000,-500.0,0.0001429,2]
[423391814,1780079432000,-500.0,0.00014289,2]
[423391817,1780079432000,-25.95396775,0.0001429,2]
[423391815,1780079432000,-500.0,0.0001429,2]
[423391813,1780079432000,-500.0,0.00014289,2]
[423391811,1780079432000,-162.380719,0.00014283,2]
[423391818,1780079432000,-502.07011062,0.0001429,2]
[423391805,1780079432000,-504.38982737,0.0001422,2]
[423391806,1780079432000,-500.0,0.00014237,2]
[423391812,1780079432000,-500.0,0.00014289,2]
[423391809,1780079432000,-151.0,0.00014283,2]
[423391808,1780079432000,-338.17410007,0.00014263,2]
[423391821,1780079432000,-143.29681539,0.0001429,2]
[423391804,1780079432000,-500.0,0.0001422,2]
[423391807,1780079432000,-352.29553924,0.00014261,2]
[423391810,1780079432000,-537.68450001,0.00014283,2]
[423391878,1780079438000,-500.0,0.0001429,2]
[423391894,1780079438000,-500.0,0.00014291,2]
[423391892,1780079438000,-500.0,0.00014291,2]
[423391880,1780079438000,-500.0,0.0001429,2]
[423391876,1780079438000,-440.91544245,0.0001429,2]
[423391877,1780079438000,-59.08455755,0.0001429,2]
[423391879,1780079438000,-500.0,0.0001429,2]
[423391874,1780079438000,-500.0,0.0001429,2]
[423391865,1780079438000,-356.70318461,0.0001429,2]
[423391875,1780079438000,-500.0,0.0001429,2]
[423391870,1780079438000,-404.40165809,0.0001429,2]
[423391871,1780079438000,-95.59834191,0.0001429,2]
[423391872,1780079438000,-500.0,0.0001429,2]
[423391867,1780079438000,-500.0,0.0001429,2]
[423391869,1780079438000,-500.0,0.0001429,2]
[423391866,1780079438000,-500.0,0.0001429,2]
[423391868,1780079438000,-500.33137294,0.0001429,2]
[423391881,1780079438000,-500.0,0.0001429,2]
[423391873,1780079438000,-500.0,0.0001429,2]
[423391883,1780079438000,-500.0,0.0001429,2]
[423391882,1780079438000,-500.0,0.0001429,2]
[423391884,1780079438000,-482.7389749,0.0001429,2]
[423391893,1780079438000,-500.0,0.00014291,2]
[423391906,1780079438000,-952.97724851,0.00014292,2]
[423391901,1780079438000,-500.0,0.00014291,2]
[423391902,1780079438000,-500.0,0.00014291,2]
[423391905,1780079438000,-22915.02475002,0.00014292,2]
[423391903,1780079438000,-25111.60024252,0.00014292,2]
[423391900,1780079438000,-624.18,0.00014291,2]
[423391898,1780079438000,-500.0,0.00014291,2]
[423391897,1780079438000,-469.55384512,0.00014291,2]
[423391904,1780079438000,-3885.45215023,0.00014292,2]
[423391895,1780079438000,-500.0,0.00014291,2]
[423391899,1780079438000,-500.0,0.00014291,2]
[423391891,1780079438000,-500.0,0.00014291,2]
[423391887,1780079438000,-501.48493491,0.00014291,2]
[423391890,1780079438000,-550.98845284,0.00014291,2]
[423391889,1780079438000,-500.0,0.00014291,2]
[423391885,1780079438000,-500.0,0.00014291,2]
[423391886,1780079438000,-500.0,0.00014291,2]
[423391888,1780079438000,-500.0,0.00014291,2]
[423391896,1780079438000,-30.44615488,0.00014291,2]
[423391912,1780079440000,-1258.43671265,0.00014292,2]
[423391911,1780079440000,-1019.05201729,0.00014292,2]
[423391915,1780079440000,-1485.55645327,0.00014292,2]
[423391914,1780079440000,-2641.89668219,0.00014292,2]
[423391916,1780079440000,-500.0,0.00014292,2]
[423391913,1780079440000,-7909.01872154,0.00014292,2]
[423391943,1780079443000,-813.5,0.00014292,2]
[423391942,1780079443000,-468.942,0.00014292,2]
[423391941,1780079443000,-285.0,0.00014292,2]
[423391940,1780079443000,-3256.23330091,0.00014292,2]
[423391939,1780079443000,-1179.67946753,0.00014292,2]
[423391938,1780079443000,-6112.49999837,0.00014292,2]
[423391948,1780079446000,-45188.38751532,0.00014292,2]
[423391946,1780079446000,-4863.79248357,0.00014292,2]
[423391947,1780079446000,-58568.39498413,0.00014292,2]
[423391951,1780079446000,-276.5150003,0.00014292,2]
[423391950,1780079446000,-378555.66040748,0.00014292,2]
[423391952,1780079446000,-24576.8024441,0.00014292,2]
[423391949,1780079446000,-920.123,0.00014292,2]
[423392093,1780079833000,152.0,0.00020514,120]
[423392141,1780080508000,899.56792897,0.00020398,120]
[423392140,1780080508000,880.75011488,0.00018704,120]
[423392139,1780080508000,897.1756142,0.00019551,120]
[423392178,1780080632000,-500.0,0.00013019,2]
[423392177,1780080632000,-500.0,0.00013019,2]
[423392179,1780080632000,-500.0,0.00013019,2]
[423392180,1780080632000,-500.0,0.00013019,2]
[423392182,1780080632000,-500.0,0.00013019,2]
[423392181,1780080632000,-500.0,0.00013019,2]
[423392193,1780080632000,-500.0,0.00013019,2]
[423392192,1780080632000,-565.07539547,0.00013019,2]
[423392183,1780080632000,-490.39255346,0.00013019,2]
[423392196,1780080632000,-500.0,0.00013019,2]
[423392191,1780080632000,-500.0,0.00013019,2]
[423392190,1780080632000,-500.0,0.00013019,2]
[423392184,1780080632000,-500.0,0.00013019,2]
[423392186,1780080632000,-500.0,0.00013019,2]
[423392185,1780080632000,-500.0,0.00013019,2]
[423392187,1780080632000,-500.0,0.00013019,2]
[423392189,1780080632000,-500.0,0.00013019,2]
[423392194,1780080632000,-500.0,0.00013019,2]
[423392176,1780080632000,-500.0,0.00013019,2]
[423392188,1780080632000,-500.0,0.00013019,2]
[423392175,1780080632000,-580.27871616,0.00013019,2]
[423392152,1780080632000,-5000.0,0.00011814,2]
[423392174,1780080632000,-500.0,0.00013019,2]
[423392153,1780080632000,-256.3315729,0.00012053,2]
[423392154,1780080632000,-186.35626997,0.00012624,2]
[423392156,1780080632000,-1200.0,0.00013017,2]
[423392155,1780080632000,-165.09057373,0.00012926,2]
[423392157,1780080632000,-1200.0,0.00013018,2]
[423392166,1780080632000,-500.0,0.00013019,2]
[423392162,1780080632000,-500.0,0.00013019,2]
[423392165,1780080632000,-339.93606561,0.00013019,2]
[423392158,1780080632000,-300.0,0.00013018,2]
[423392159,1780080632000,-300.0,0.00013018,2]
[423392160,1780080632000,-300.0,0.00013018,2]
[423392163,1780080632000,-500.0,0.00013019,2]
[423392164,1780080632000,-500.0,0.00013019,2]
[423392161,1780080632000,-300.0,0.00013018,2]
[423392168,1780080632000,-500.0,0.00013019,2]
[423392169,1780080632000,-500.0,0.00013019,2]
[423392172,1780080632000,-500.0,0.00013019,2]
[423392171,1780080632000,-500.0,0.00013019,2]
[423392170,1780080632000,-500.0,0.00013019,2]
[423392173,1780080632000,-500.0,0.00013019,2]
[423392204,1780080632000,-500.0,0.00013019,2]
[423392202,1780080632000,-500.0,0.00013019,2]
[423392213,1780080632000,-500.0,0.00013019,2]
[423392251,1780080632000,-500.0,0.00013019,2]
[423392253,1780080632000,-500.0,0.00013019,2]
[423392255,1780080632000,-500.0,0.00013019,2]
[423392247,1780080632000,-500.0,0.00013019,2]
[423392242,1780080632000,-500.0,0.00013019,2]
[423392249,1780080632000,-500.0,0.00013019,2]
[423392259,1780080632000,-500.0,0.00013019,2]
[423392261,1780080632000,-500.0,0.00013019,2]
[423392263,1780080632000,-500.0,0.00013019,2]
[423392278,1780080632000,-500.0,0.00013019,2]
[423392279,1780080632000,-500.0,0.00013019,2]
[423392264,1780080632000,-500.0,0.00013019,2]
[423392276,1780080632000,-500.0,0.00013019,2]
[423392266,1780080632000,-500.0,0.00013019,2]
[423392268,1780080632000,-500.0,0.00013019,2]
[423392272,1780080632000,-500.0,0.00013019,2]
[423392270,1780080632000,-500.0,0.00013019,2]
[423392274,1780080632000,-500.0,0.00013019,2]
[423392206,1780080632000,-500.0,0.00013019,2]
[423392248,1780080632000,-500.0,0.00013019,2]
[423392244,1780080632000,-500.0,0.00013019,2]
[423392257,1780080632000,-500.0,0.00013019,2]
[423392240,1780080632000,-500.0,0.00013019,2]
[423392200,1780080632000,-500.0,0.00013019,2]
[423392198,1780080632000,-500.0,0.00013019,2]
[423392245,1780080632000,-500.0,0.00013019,2]
[423392195,1780080632000,-500.0,0.00013019,2]
[423392210,1780080632000,-500.0,0.00013019,2]
[423392208,1780080632000,-500.0,0.00013019,2]
[423392215,1780080632000,-500.0,0.00013019,2]
[423392229,1780080632000,-500.0,0.00013019,2]
[423392231,1780080632000,-500.0,0.00013019,2]
[423392233,1780080632000,-500.0,0.00013019,2]
[423392212,1780080632000,-500.0,0.00013019,2]
[423392219,1780080632000,-500.0,0.00013019,2]
[423392235,1780080632000,-500.0,0.00013019,2]
[423392225,1780080632000,-500.0,0.00013019,2]
[423392227,1780080632000,-500.0,0.00013019,2]
[423392237,1780080632000,-500.0,0.00013019,2]
[423392238,1780080632000,-500.0,0.00013019,2]
[423392221,1780080632000,-500.0,0.00013019,2]
[423392217,1780080632000,-476.95057501,0.00013019,2]
[423392236,1780080632000,-500.0,0.00013019,2]
[423392223,1780080632000,-500.0,0.00013019,2]
[423392296,1780080633000,-500.0,0.00013019,2]
[423392311,1780080633000,-500.0,0.00013019,2]
[423392300,1780080633000,-500.0,0.00013019,2]
[423392298,1780080633000,-500.0,0.00013019,2]
[423392307,1780080633000,-500.0,0.00013019,2]
[423392308,1780080633000,-500.0,0.00013019,2]
[423392294,1780080633000,-500.0,0.00013019,2]
[423392292,1780080633000,-500.0,0.00013019,2]
[423392287,1780080633000,-500.0,0.00013019,2]
[423392305,1780080633000,-500.0,0.00013019,2]
[423392289,1780080633000,-500.0,0.00013019,2]
[423392291,1780080633000,-500.0,0.00013019,2]
[423392285,1780080633000,-500.0,0.00013019,2]
[423392283,1780080633000,-500.0,0.00013019,2]
[423392281,1780080633000,-500.0,0.00013019,2]
[423392312,1780080633000,-609.77343566,0.00013019,2]
[423392301,1780080633000,-500.0,0.00013019,2]
[423392314,1780080633000,-500.0,0.00013019,2]
[423392303,1780080633000,-550.0,0.00013019,2]
[423392326,1780080633000,-500.47301444,0.00013019,2]
[423392358,1780080633000,-431.7578105,0.00013027,2]
[423392324,1780080633000,-500.0,0.00013019,2]
[423392356,1780080633000,-500.0,0.00013027,2]
[423392342,1780080633000,-500.0,0.00013027,2]
[423392340,1780080633000,-11017.06653441,0.0001302,3]
[423392337,1780080633000,-20010.0,0.0001302,3]
[423392352,1780080633000,-104.76594654,0.00013027,2]
[423392349,1780080633000,-395.23405346,0.00013027,2]
[423392347,1780080633000,-500.0,0.00013027,2]
[423392354,1780080633000,-500.0,0.00013027,2]
[423392320,1780080633000,-500.0,0.00013019,2]
[423392318,1780080633000,-500.0,0.00013019,2]
[423392335,1780080633000,-1078.08916142,0.0001302,3]
[423392333,1780080633000,-997.32222237,0.0001302,3]
[423392316,1780080633000,-500.0,0.00013019,2]
[423392328,1780080633000,-33019.7238345,0.0001302,3]
[423392322,1780080633000,-500.0,0.00013019,2]
[423392331,1780080633000,-276.36,0.0001302,3]
[423392453,1780080640000,-718.89,0.00013293,2]
[423392455,1780080640000,-500.0,0.00013301,2]
[423392460,1780080640000,-500.0,0.00013301,2]
[423392462,1780080640000,-500.0,0.00013301,2]
[423392458,1780080640000,-500.0,0.00013301,2]
[423392456,1780080640000,-500.0,0.00013301,2]
[423392448,1780080640000,-500.0,0.00013293,2]
[423392452,1780080640000,-500.0,0.00013293,2]
[423392450,1780080640000,-500.0,0.00013293,2]
[423392454,1780080640000,-500.0,0.00013301,2]
[423392470,1780080640000,-152.0,0.00013555,7]
[423392449,1780080640000,-500.0,0.00013293,2]
[423392464,1780080640000,-500.0,0.00013301,2]
[423392481,1780080640000,-718.89,0.00013567,2]
[423392478,1780080640000,-500.0,0.00013567,2]
[423392473,1780080640000,-500.0,0.00013567,2]
[423392480,1780080640000,-500.0,0.00013567,2]
[423392477,1780080640000,-501.93,0.00013567,2]
[423392451,1780080640000,-500.0,0.00013293,2]
[423392466,1780080640000,-179.70449514,0.00013301,2]
[423392476,1780080640000,-500.0,0.00013567,2]
[423392472,1780080640000,-152.0,0.00013555,7]
[423392479,1780080640000,-345.1,0.00013567,2]
[423392447,1780080640000,-500.0,0.00013293,2]
[423392444,1780080640000,-500.0,0.00013293,2]
[423392437,1780080640000,-300.0,0.00013278,2]
[423392443,1780080640000,-600.0,0.00013278,2]
[423392468,1780080640000,-320.29550486,0.00013301,2]
[423392413,1780080640000,-68.2421895,0.00013027,2]
[423392411,1780080640000,-718.89,0.00013019,2]
[423392431,1780080640000,-300.0,0.00013278,2]
[423392426,1780080640000,-300.0,0.00013278,2]
[423392415,1780080640000,-500.0,0.00013027,2]
[423392417,1780080640000,-500.0,0.00013027,2]
[423392433,1780080640000,-300.0,0.00013278,2]
[423392428,1780080640000,-300.0,0.00013278,2]
[423392425,1780080640000,-23903.7575003,0.00013029,2]
[423392434,1780080640000,-300.0,0.00013278,2]
[423392432,1780080640000,-300.0,0.00013278,2]
[423392423,1780080640000,-500.0,0.00013027,2]
[423392421,1780080640000,-500.0,0.00013027,2]
[423392430,1780080640000,-300.0,0.00013278,2]
[423392419,1780080640000,-500.0,0.00013027,2]
[423392441,1780080640000,-300.0,0.00013278,2]
[423392439,1780080640000,-300.0,0.00013278,2]
[423392438,1780080640000,-300.0,0.00013278,2]
[423392446,1780080640000,-500.0,0.00013293,2]
[423392435,1780080640000,-300.0,0.00013278,2]
[423392445,1780080640000,-500.0,0.00013293,2]
[423392440,1780080640000,-300.0,0.00013278,2]
[423392442,1780080640000,-300.0,0.00013278,2]
[423392474,1780080640000,-500.0,0.00013567,2]
[423392436,1780080640000,-300.0,0.00013278,2]
[423392482,1780080640000,-500.0,0.00013575,2]
[423392513,1780080640000,-500.0,0.00014115,2]
[423392528,1780080640000,-500.0,0.00014123,2]
[423392529,1780080640000,-390.69,0.00014123,2]
[423392517,1780080640000,-500.0,0.00014115,2]
[423392519,1780080640000,-500.0,0.00014115,2]
[423392531,1780080640000,-500.0,0.00014123,2]
[423392523,1780080640000,-500.0,0.00014123,2]
[423392521,1780080640000,-718.89,0.00014115,2]
[423392534,1780080640000,-500.0,0.00014148,2]
[423392540,1780080640000,-500.0,0.00014148,2]
[423392539,1780080640000,-500.0,0.00014148,2]
[423392536,1780080640000,-500.0,0.00014148,2]
[423392533,1780080640000,-500.0,0.00014148,2]
[423392543,1780080640000,-301.47119287,0.00014148,2]
[423392538,1780080640000,-500.0,0.00014148,2]
[423392542,1780080640000,-500.0,0.00014148,2]
[423392544,1780080640000,-500.0,0.00014148,2]
[423392532,1780080640000,-304.85378387,0.0001414,2]
[423392541,1780080640000,-500.0,0.00014148,2]
[423392537,1780080640000,-527.89022961,0.00014148,2]
[423392545,1780080640000,-500.0,0.00014148,2]
[423392546,1780080640000,-500.0,0.00014148,2]
[423392475,1780080640000,-158.67,0.00013567,2]
[423392515,1780080640000,-500.0,0.00014115,2]
[423392525,1780080640000,-500.0,0.00014123,2]
[423392535,1780080640000,-500.0,0.00014148,2]
[423392509,1780080640000,-304.85378387,0.00014115,2]
[423392485,1780080640000,-500.0,0.00013575,2]
[423392526,1780080640000,-500.0,0.00014123,2]
[423392483,1780080640000,-500.0,0.00013575,2]
[423392484,1780080640000,-500.0,0.00013575,2]
[423392487,1780080640000,-500.0,0.00013575,2]
[423392488,1780080640000,-500.0,0.00013575,2]
[423392491,1780080640000,-500.0,0.00013841,2]
[423392492,1780080640000,-500.0,0.00013841,2]
[423392493,1780080640000,-500.0,0.00013841,2]
[423392489,1780080640000,-353.62324,0.00013699,2]
[423392494,1780080640000,-500.0,0.00013841,2]
[423392486,1780080640000,-500.0,0.00013575,2]
[423392490,1780080640000,-500.0,0.00013841,2]
[423392503,1780080640000,-362.65723935,0.00013849,2]
[423392495,1780080640000,-718.89,0.00013841,2]
[423392496,1780080640000,-500.0,0.00013849,2]
[423392506,1780080640000,-304.8537839,0.0001409,2]
[423392501,1780080640000,-500.0,0.00013849,2]
[423392511,1780080640000,-500.0,0.00014115,2]
[423392499,1780080640000,-500.0,0.00013849,2]
[423392497,1780080640000,-500.0,0.00013849,2]
[423392500,1780080640000,-500.0,0.00013849,2]
[423392504,1780080640000,-165.09057371,0.00013998,2]
[423392508,1780080640000,-317.71728248,0.00014092,5]
[423392498,1780080640000,-500.0,0.00013849,2]
[423392586,1780080641000,-500.21268206,0.00014148,2]
[423392591,1780080641000,-500.0,0.00014148,2]
[423392595,1780080641000,-500.0,0.00014148,2]
[423392580,1780080641000,-500.0,0.00014148,2]
[423392578,1780080641000,-500.0,0.00014148,2]
[423392576,1780080641000,-604.48,0.00014148,2]
[423392589,1780080641000,-500.0,0.00014148,2]
[423392575,1780080641000,-500.0,0.00014148,2]
[423392573,1780080641000,-500.0,0.00014148,2]
[423392597,1780080641000,-730.28,0.00014148,2]
[423392598,1780080641000,-500.0,0.00014148,2]
[423392590,1780080641000,-500.0,0.00014148,2]
[423392579,1780080641000,-500.0,0.00014148,2]
[423392593,1780080641000,-500.0,0.00014148,2]
[423392631,1780080641000,-500.0,0.00014149,2]
[423392588,1780080641000,-500.0,0.00014148,2]
[423392574,1780080641000,-588.39,0.00014148,2]
[423392600,1780080641000,-500.0,0.00014148,2]
[423392596,1780080641000,-500.0,0.00014148,2]
[423392601,1780080641000,-500.0,0.00014148,2]
[423392613,1780080641000,-500.0,0.00014148,2]
[423392614,1780080641000,-500.37085642,0.00014148,2]
[423392603,1780080641000,-500.0,0.00014148,2]
[423392618,1780080641000,-500.0,0.00014149,2]
[423392638,1780080641000,-500.0,0.00014149,2]
[423392635,1780080641000,-500.0,0.00014149,2]
[423392615,1780080641000,-500.0,0.00014148,2]
[423392577,1780080641000,-500.0,0.00014148,2]
[423392599,1780080641000,-500.0,0.00014148,2]
[423392594,1780080641000,-9604.36,0.00014148,2]
[423392547,1780080641000,-500.0,0.00014148,2]
[423392587,1780080641000,-500.0,0.00014148,2]
[423392548,1780080641000,-500.0,0.00014148,2]
[423392554,1780080641000,-500.0,0.00014148,2]
[423392556,1780080641000,-500.0,0.00014148,2]
[423392558,1780080641000,-500.0,0.00014148,2]
[423392549,1780080641000,-500.0,0.00014148,2]
[423392608,1780080641000,-363.85281819,0.00014148,2]